{"text_format":"1","workbook":"xlsx","n_sheets":7,"sheets":["Application Form","Attachments","Certifications","Validation Values","Account","Station","Applicant"],"not_rendered":{"charts":0,"images":0,"macros":1,"external_links":1,"defined_names":2,"comments":0,"pivot_tables":0},"unopened":[],"bounds":{"document_bytes":16777216,"sheet_cells":100000,"rows_first":2000,"rows_last":500,"rows_between":2000,"halvings":0,"cell_chars":16384,"cell_head_chars":4096},"cells_cut":0,"cells_raw":0,"read":"whole","date_system":"1900"}

{"sheet":"Application Form","index":0,"n_rows":66,"n_cols":14,"rows_kept":66,"cut":false,"hidden":false,"merged":[[53,2,53,3],[54,2,54,3],[34,7,34,8],[37,7,37,8],[37,2,37,4],[43,2,45,8],[49,5,49,6],[26,1,26,2],[26,3,26,5],[27,1,27,2],[27,3,27,5],[33,2,33,3],[24,1,24,2],[24,3,24,5],[25,3,25,5],[25,1,25,2],[20,3,20,5],[23,1,23,2],[23,3,23,5],[18,12,18,14],[19,10,19,11],[19,12,19,14],[11,3,11,5],[18,1,18,2],[18,3,18,5],[19,1,19,2],[19,3,19,5],[57,2,57,3],[62,3,63,8],[1,1,2,16],[8,3,8,5],[6,1,6,2],[7,1,7,2],[9,12,9,14],[8,12,8,14],[7,12,7,14],[6,12,6,14],[7,3,7,5],[6,3,6,5],[9,3,9,5],[8,1,8,2],[9,1,9,2],[18,10,18,11]]}
[]
[null,"HRI Application"]
[]
[null,"Upload completed application file to the LRT"]
[null,"Station Owner Details"]
[]
[null,"Organization Name *",null,null,null,null,null,null,null,null,null,"Federal Employee Identification Number (FEIN) *"]
[null,"Address Line 1 * ",null,null,null,null,null,null,null,null,null,"Address Line 2"]
[null,"City * ",null,null,null,null,null,null,null,null,null,"State or Province *"]
[null,"Zip Code * ",null,null,null,null,null,null,null,null,null,"Country *"]
[]
[]
[]
[]
[]
[]
[null,"Applicant Representative"]
[]
[null,"Primary Contact Name *",null,null,null,null,null,null,null,null,"Title Position *"]
[null,"Business Phone *",null,null,null,null,null,null,null,null,"Mobile Phone * "]
[null,null,"Email *"]
[]
[null,"Station Details"]
[null,"Station Name *"]
[null,"Address Line 1 * "]
[null,"Address Line 2"]
[null,"City * "]
[null,"Zip Code * "]
[]
[null,null,null,"Latitude",null,"Longitude"]
[null,null,"Location *"]
[]
[null,"Expected Daily Permitted Hours *",null,null,null,"Hours of Operation "]
[null,null,"24 hours",null,null,"00:00:00","to","00:00:00",null,{"$f":"IF(TEXT(H34-F34,\"HH:MM\")=\"00:00\",24,TEXT(H34-F34,\"HH:MM\"))","v":24},"hours"]
[null,null,{"$f":"IF(C34=\"Less than 24 hours\",\"Make sure to include supporting documentation\",\"\")","v":""},null,null,null,null,"Attach File",null,"Hour of operation information"]
[]
[null,"Station Nameplate Refueling Capacity"]
[null,null,"95% SOC HySCapE Capacity * ",null,null,null,"kg/day","Not Included",null,"* Upload HySCapE Model Inputs "]
[]
[null,"Number of Refueling Positions at the Station *"]
[]
[null,"Expected Source and Method of Hydrogen Delivery,  Hydrogen Production, and CI determination *"]
[]
[]
[]
[]
[]
[null,"Expected CI Value of Hydrogen Dispensed at the Station *",null,null,null,null,null,"gCO2e/MJ"]
[]
[null,"Expected Date of Station Operation Start *",null,null,null,"2020-01-01",null,"(mm/dd/yyyy)",null,null,null,{"$f":"IF(F50<=TODAY(),\"Please enter station FSE ID\",\"\")","v":""}]
[]
[null,"Additional Documents to Include",null,null,null,null,null,null,null,"Attachment Box"]
[]
[null,null,"Not Included",null,"* Station Location Justification"]
[null,null,"Not Included",null,"* Signed Attestation Letter"]
[]
[null,"Upload Redacted Information (zip all material into a single file)"]
[null,null,"Not Included",null,"Zip-file Containing Any Redacted Material",null,null,null,null,"Justification",null,"Attestation",null,"HySCapE"]
[]
[null,"I Certify that the station meets the following requirements:"]
[null,null,"No","* Station Under Consideration Will Be Open to the Public"]
[]
[null,null,"No","* Station under consideration is not receiving funding pursuant to any settlement related to any California or Federal regulation enforcement"]
[]
[null,null,null,null,null,null,null,null,null,"Redacted"]
[null,null,"No","* Station under consideration is not built as a required mitigation measure for CEQA"]

{"sheet":"Attachments","index":1,"n_rows":0,"n_cols":0,"rows_kept":0,"cut":false,"hidden":true,"merged":[]}

{"sheet":"Certifications","index":2,"n_rows":6,"n_cols":2,"rows_kept":6,"cut":false,"hidden":true,"merged":[]}
["question","response"]
[{"$f":"MID('Application Form'!D61,3,LEN('Application Form'!D61))","v":"Station Under Consideration Will Be Open to the Public"},{"$f":"'Application Form'!C61","v":"No"}]
[{"$f":"MID('Application Form'!D63,3,LEN('Application Form'!D63))","v":"Station under consideration is not receiving funding pursuant to any settlement related to any California or Federal regulation enforcement"},{"$f":"'Application Form'!C63","v":"No"}]
[{"$f":"MID('Application Form'!D66,3,LEN('Application Form'!D66))","v":"Station under consideration is not built as a required mitigation measure for CEQA"},{"$f":"'Application Form'!C66","v":"No"}]
[{"$f":"MID('Application Form'!D64,3,LEN('Application Form'!D64))","v":""}]
[{"$f":"MID('Application Form'!D65,3,LEN('Application Form'!D65))","v":""}]

{"sheet":"Validation Values","index":3,"n_rows":282,"n_cols":12,"rows_kept":282,"cut":false,"hidden":true,"merged":[]}
["Countries",null,null,null,"State/Prov"]
["Andorra",null,null,null,"Alberta"]
["United Arab Emirates",null,null,null,"British Columbia"]
["Afghanistan",null,null,null,"Manitoba"]
["Antigua and Barbuda",null,null,null,"New Brunswick"]
["Anguilla",null,null,null,"Newfoundland and Labrador"]
["Albania",null,null,null,"Nova Scotia"]
["Armenia",null,null,null,"Northwest Territories"]
["Angola",null,null,null,"Nunavut"]
["Antarctica",null,null,null,"Ontario"]
["Argentina",null,null,null,"Prince Edward Island"]
["American Samoa",null,null,null,"Quebec"]
["Austria",null,null,null,"Saskatchewan"]
["Australia",null,null,null,"Yukon"]
["Aruba",null,null,null," - States - "]
["Åland Islands",null,null,null,"Alabama"]
["Azerbaijan",null,null,null,"Alaska"]
["Bosnia and Herzegovina",null,null,null,"Arizona"]
["Barbados",null,null,null,"Arkansas"]
["Bangladesh",null,null,null,"California"]
["Belgium",null,null,null,"Colorado"]
["Burkina Faso",null,null,null,"Connecticut"]
["Bulgaria",null,null,null,"Delaware"]
["Bahrain",null,null,null,"District Of Columbia"]
["Burundi",null,null,null,"Florida"]
["Benin",null,null,null,"Georgia"]
["Saint Barthélemy",null,null,null,"Hawaii"]
["Bermuda",null,null,null,"Idaho"]
["Brunei Darussalam",null,null,null,"Illinois"]
["Bolivia (Plurinational State of)",null,null,null,"Indiana"]
["Bonaire, Sint Eustatius and Saba",null,null,null,"Iowa"]
["Brazil",null,null,null,"Kansas"]
["Bahamas",null,null,null,"Kentucky"]
["Bhutan",null,null,null,"Louisiana"]
["Bouvet Island",null,null,null,"Maine"]
["Botswana",null,null,null,"Maryland"]
["Belarus",null,null,null,"Massachusetts"]
["Belize",null,null,null,"Michigan"]
["Canada",null,null,null,"Minnesota"]
["Cocos (Keeling) Islands",null,null,null,"Mississippi"]
["Congo, Democratic Republic of the",null,null,null,"Missouri"]
["Central African Republic",null,null,null,"Montana"]
["Congo",null,null,null,"Nebraska"]
["Switzerland",null,null,null,"Nevada"]
["Côte d'Ivoire",null,null,null,"New Hampshire"]
["Cook Islands",null,null,null,"New Jersey"]
["Chile",null,null,null,"New Mexico"]
["Cameroon",null,null,null,"New York"]
["China",null,null,null,"North Carolina"]
["Colombia",null,null,null,"North Dakota"]
["Costa Rica",null,null,null,"Ohio"]
["Cuba",null,null,null,"Oklahoma"]
["Cabo Verde",null,null,null,"Oregon"]
["Curaçao",null,null,null,"Pennsylvania"]
["Christmas Island",null,null,null,"Rhode Island"]
["Cyprus",null,null,null,"South Carolina"]
["Czechia",null,null,null,"South Dakota"]
["Germany",null,null,null,"Tennessee"]
["Djibouti",null,null,null,"Texas"]
["Denmark",null,null,null,"Utah"]
["Dominica",null,null,null,"Vermont"]
["Dominican Republic",null,null,null,"Virginia"]
["Algeria",null,null,null,"Washington"]
["Ecuador",null,null,null,"West Virginia"]
["Estonia",null,null,null,"Wisconsin"]
["Egypt",null,null,null,"Wyoming"]
["Western Sahara"]
["Eritrea"]
["Spain"]
["Ethiopia"]
["Finland"]
["Fiji"]
["Falkland Islands (Malvinas)"]
["Micronesia (Federated States of)"]
["Faroe Islands"]
["France"]
["Gabon"]
["United Kingdom of Great Britain and Northern Ireland"]
["Grenada"]
["Georgia"]
["French Guiana"]
["Guernsey"]
["Ghana"]
["Gibraltar"]
["Greenland"]
["Gambia"]
["Guinea"]
["Guadeloupe"]
["Equatorial Guinea"]
["Greece"]
["South Georgia and the South Sandwich Islands"]
["Guatemala"]
["Guam"]
["Guinea-Bissau"]
["Guyana"]
["Hong Kong"]
["Heard Island and McDonald Islands"]
["Honduras"]
["Croatia"]
["Haiti"]
["Hungary"]
["Indonesia"]
["Ireland"]
["Israel"]
["Isle of Man"]
["India"]
["British Indian Ocean Territory"]
["Iraq"]
["Iran (Islamic Republic of)"]
["Iceland"]
["Italy"]
["Jersey"]
["Jamaica"]
["Jordan"]
["Japan"]
["Kenya"]
["Kyrgyzstan"]
["Cambodia"]
["Kiribati"]
["Comoros"]
["Saint Kitts and Nevis"]
["Korea (Democratic People's Republic of)"]
["Korea, Republic of"]
["Kuwait"]
["Cayman Islands"]
["Kazakhstan"]
["Lao People's Democratic Republic"]
["Lebanon"]
["Saint Lucia"]
["Liechtenstein"]
["Sri Lanka"]
["Liberia"]
["Lesotho"]
["Lithuania"]
["Luxembourg"]
["Latvia"]
["Libya"]
["Morocco"]
["Monaco"]
["Moldova, Republic of"]
["Montenegro"]
["Saint Martin (French part)"]
["Madagascar"]
["Marshall Islands"]
["Macedonia, the former Yugoslav Republic of"]
["Mali"]
["Myanmar"]
["Mongolia"]
["Macao"]
["Northern Mariana Islands"]
["Martinique"]
["Mauritania"]
["Montserrat"]
["Malta"]
["Mauritius"]
["Maldives"]
["Malawi"]
["Mexico"]
["Malaysia"]
["Mozambique"]
["Namibia"]
["New Caledonia"]
["Niger"]
["Norfolk Island"]
["Nigeria"]
["Nicaragua"]
["Netherlands"]
["Norway"]
["Nepal"]
["Nauru"]
["Niue"]
["New Zealand"]
["Oman"]
["Panama"]
["Peru"]
["French Polynesia"]
["Papua New Guinea"]
["Philippines"]
["Pakistan"]
["Poland"]
["Saint Pierre and Miquelon"]
["Pitcairn"]
["Puerto Rico"]
["Palestine, State of"]
["Portugal"]
["Palau"]
["Paraguay"]
["Qatar"]
["Réunion"]
["Romania"]
["Serbia"]
["Russian Federation"]
["Rwanda"]
["Saudi Arabia"]
["Solomon Islands"]
["Seychelles"]
["Sudan"]
["Sweden"]
["Singapore"]
["Saint Helena, Ascension and Tristan da Cunha"]
["Slovenia"]
["Svalbard and Jan Mayen"]
["Slovakia"]
["Sierra Leone"]
["San Marino"]
["Senegal"]
["Somalia"]
["Suriname"]
["South Sudan"]
["Sao Tome and Principe"]
["El Salvador"]
["Sint Maarten (Dutch part)"]
["Syrian Arab Republic"]
["Eswatini"]
["Turks and Caicos Islands"]
["Chad"]
["French Southern Territories",null,null,null,null,null,null,"1. <option value=\"\" selected=\"selected\"> - Province - </option>",null,{"$f":"FIND(\">\",H217)","v":40},{"$f":"FIND(\"</\",H217)","v":55},{"$f":"MID(H217,J217+1,K217-J217-1)","v":" - Province - "}]
["Togo",null,null,null,null,null,null,"2. <option value=\"AB\">Alberta</option>",null,22,30,"Alberta"]
["Thailand",null,null,null,null,null,null,"3. <option value=\"BC\">British Columbia</option>",null,22,39,"British Columbia"]
["Tajikistan",null,null,null,null,null,null,"4. <option value=\"MB\">Manitoba</option>",null,22,31,"Manitoba"]
["Tokelau",null,null,null,null,null,null,"5. <option value=\"NB\">New Brunswick</option>",null,22,36,"New Brunswick"]
["Timor-Leste",null,null,null,null,null,null,"6. <option value=\"NL\">Newfoundland and Labrador</option>",null,22,48,"Newfoundland and Labrador"]
["Turkmenistan",null,null,null,null,null,null,"7. <option value=\"NS\">Nova Scotia</option>",null,22,34,"Nova Scotia"]
["Tunisia",null,null,null,null,null,null,"8. <option value=\"NT\">Northwest Territories</option>",null,22,44,"Northwest Territories"]
["Tonga",null,null,null,null,null,null,"9. <option value=\"NU\">Nunavut</option>",null,22,30,"Nunavut"]
["Turkey",null,null,null,null,null,null,"10. <option value=\"ON\">Ontario</option>",null,23,31,"Ontario"]
["Trinidad and Tobago",null,null,null,null,null,null,"11. <option value=\"PE\">Prince Edward Island</option>",null,23,44,"Prince Edward Island"]
["Tuvalu",null,null,null,null,null,null,"12. <option value=\"QC\">Quebec</option>",null,23,30,"Quebec"]
["Taiwan, Province of China",null,null,null,null,null,null,"13. <option value=\"SK\">Saskatchewan</option>",null,{"$f":"FIND(\">\",H229)","v":23},{"$f":"FIND(\"</\",H229)","v":36},{"$f":"MID(H229,J229+1,K229-J229-1)","v":"Saskatchewan"}]
["Tanzania, United Republic of",null,null,null,null,null,null,"14. <option value=\"YT\">Yukon</option>",null,23,29,"Yukon"]
["Ukraine",null,null,null,null,null,null,"15. <option value=\"\"> - States - </option>",null,21,34," - States - "]
["Uganda",null,null,null,null,null,null,"16. <option value=\"AL\">Alabama</option>",null,23,31,"Alabama"]
["United States Minor Outlying Islands",null,null,null,null,null,null,"17. <option value=\"AK\">Alaska</option>",null,23,30,"Alaska"]
["United States of America",null,null,null,null,null,null,"18. <option value=\"AZ\">Arizona</option>",null,23,31,"Arizona"]
["Uruguay",null,null,null,null,null,null,"19. <option value=\"AR\">Arkansas</option>",null,23,32,"Arkansas"]
["Uzbekistan",null,null,null,null,null,null,"20. <option value=\"CA\">California</option>",null,23,34,"California"]
["Holy See",null,null,null,null,null,null,"21. <option value=\"CO\">Colorado</option>",null,23,32,"Colorado"]
["Saint Vincent and the Grenadines",null,null,null,null,null,null,"22. <option value=\"CT\">Connecticut</option>",null,23,35,"Connecticut"]
["Venezuela (Bolivarian Republic of)",null,null,null,null,null,null,"23. <option value=\"DE\">Delaware</option>",null,23,32,"Delaware"]
["Virgin Islands (British)",null,null,null,null,null,null,"24. <option value=\"DC\">District Of Columbia</option>",null,23,44,"District Of Columbia"]
["Virgin Islands (U.S.)",null,null,null,null,null,null,"25. <option value=\"FL\">Florida</option>",null,23,31,"Florida"]
["Viet Nam",null,null,null,null,null,null,"26. <option value=\"GA\">Georgia</option>",null,23,31,"Georgia"]
["Vanuatu",null,null,null,null,null,null,"27. <option value=\"HI\">Hawaii</option>",null,23,30,"Hawaii"]
["Wallis and Futuna",null,null,null,null,null,null,"28. <option value=\"ID\">Idaho</option>",null,23,29,"Idaho"]
["Samoa",null,null,null,null,null,null,"29. <option value=\"IL\">Illinois</option>",null,23,32,"Illinois"]
["Yemen",null,null,null,null,null,null,"30. <option value=\"IN\">Indiana</option>",null,23,31,"Indiana"]
["Mayotte",null,null,null,null,null,null,"31. <option value=\"IA\">Iowa</option>",null,23,28,"Iowa"]
["South Africa",null,null,null,null,null,null,"32. <option value=\"KS\">Kansas</option>",null,23,30,"Kansas"]
["Zambia",null,null,null,null,null,null,"33. <option value=\"KY\">Kentucky</option>",null,23,32,"Kentucky"]
["Zimbabwe",null,null,null,null,null,null,"34. <option value=\"LA\">Louisiana</option>",null,23,33,"Louisiana"]
[null,null,null,null,null,null,null,"35. <option value=\"ME\">Maine</option>",null,23,29,"Maine"]
[null,null,null,null,null,null,null,"36. <option value=\"MD\">Maryland</option>",null,23,32,"Maryland"]
[null,null,null,null,null,null,null,"37. <option value=\"MA\">Massachusetts</option>",null,23,37,"Massachusetts"]
[null,null,null,null,null,null,null,"38. <option value=\"MI\">Michigan</option>",null,23,32,"Michigan"]
[null,null,null,null,null,null,null,"39. <option value=\"MN\">Minnesota</option>",null,23,33,"Minnesota"]
[null,null,null,null,null,null,null,"40. <option value=\"MS\">Mississippi</option>",null,23,35,"Mississippi"]
[null,null,null,null,null,null,null,"41. <option value=\"MO\">Missouri</option>",null,23,32,"Missouri"]
[null,null,null,null,null,null,null,"42. <option value=\"MT\">Montana</option>",null,23,31,"Montana"]
[null,null,null,null,null,null,null,"43. <option value=\"NE\">Nebraska</option>",null,23,32,"Nebraska"]
[null,null,null,null,null,null,null,"44. <option value=\"NV\">Nevada</option>",null,23,30,"Nevada"]
[null,null,null,null,null,null,null,"45. <option value=\"NH\">New Hampshire</option>",null,23,37,"New Hampshire"]
[null,null,null,null,null,null,null,"46. <option value=\"NJ\">New Jersey</option>",null,23,34,"New Jersey"]
[null,null,null,null,null,null,null,"47. <option value=\"NM\">New Mexico</option>",null,23,34,"New Mexico"]
[null,null,null,null,null,null,null,"48. <option value=\"NY\">New York</option>",null,23,32,"New York"]
[null,null,null,null,null,null,null,"49. <option value=\"NC\">North Carolina</option>",null,23,38,"North Carolina"]
[null,null,null,null,null,null,null,"50. <option value=\"ND\">North Dakota</option>",null,23,36,"North Dakota"]
[null,null,null,null,null,null,null,"51. <option value=\"OH\">Ohio</option>",null,23,28,"Ohio"]
[null,null,null,null,null,null,null,"52. <option value=\"OK\">Oklahoma</option>",null,23,32,"Oklahoma"]
[null,null,null,null,null,null,null,"53. <option value=\"OR\">Oregon</option>",null,23,30,"Oregon"]
[null,null,null,null,null,null,null,"54. <option value=\"PA\">Pennsylvania</option>",null,23,36,"Pennsylvania"]
[null,null,null,null,null,null,null,"55. <option value=\"RI\">Rhode Island</option>",null,23,36,"Rhode Island"]
[null,null,null,null,null,null,null,"56. <option value=\"SC\">South Carolina</option>",null,23,38,"South Carolina"]
[null,null,null,null,null,null,null,"57. <option value=\"SD\">South Dakota</option>",null,23,36,"South Dakota"]
[null,null,null,null,null,null,null,"58. <option value=\"TN\">Tennessee</option>",null,23,33,"Tennessee"]
[null,null,null,null,null,null,null,"59. <option value=\"TX\">Texas</option>",null,23,29,"Texas"]
[null,null,null,null,null,null,null,"60. <option value=\"UT\">Utah</option>",null,23,28,"Utah"]
[null,null,null,null,null,null,null,"61. <option value=\"VT\">Vermont</option>",null,23,31,"Vermont"]
[null,null,null,null,null,null,null,"62. <option value=\"VA\">Virginia</option>",null,23,32,"Virginia"]
[null,null,null,null,null,null,null,"63. <option value=\"WA\">Washington</option>",null,23,34,"Washington"]
[null,null,null,null,null,null,null,"64. <option value=\"WV\">West Virginia</option>",null,23,37,"West Virginia"]
[null,null,null,null,null,null,null,"65. <option value=\"WI\">Wisconsin</option>",null,23,33,"Wisconsin"]
[null,null,null,null,null,null,null,"66. <option value=\"WY\">Wyoming</option>",null,23,31,"Wyoming"]

{"sheet":"Account","index":4,"n_rows":3,"n_cols":10,"rows_kept":3,"cut":false,"hidden":true,"merged":[]}
["FEIN","OrgName","Address1","Address2","Country","City","State","Zipcode","Email","ARBWeb"]
[{"$f":"IF('Application Form'!M7,'Application Form'!M7,\"\")","v":""},{"$f":"'Application Form'!D7","v":0},{"$f":"'Application Form'!D8","v":0},{"$f":"'Application Form'!M8","v":0},{"$f":"'Application Form'!M10","v":0},{"$f":"'Application Form'!D9","v":0},{"$f":"'Application Form'!M9","v":0},{"$f":"'Application Form'!D10","v":0},{"$f":"'Application Form'!D12","v":0},{"$f":"'Application Form'!C14","v":0}]
[{"$f":"IF(A2=0,\"\",A2)","v":""},{"$f":"IF(B2=0,\"\",B2)","v":""},"","","","","","","",""]

{"sheet":"Station","index":5,"n_rows":3,"n_cols":24,"rows_kept":3,"cut":false,"hidden":true,"merged":[]}
["name","fseid","stationtype","address1","address2","city","zip","lat","lon","permitperiod","permithours","npcap","nopos","hsource","expctci","expctopdate","attestation","locationjust","permitjust","hyscape","maxpower","sitepower","capacityjust","description"]
[{"$f":"'Application Form'!D24","v":0},{"$f":"'Application Form'!M50","v":0},"HRI",{"$f":"'Application Form'!D25","v":0},{"$f":"'Application Form'!D26","v":0},{"$f":"'Application Form'!D27","v":0},{"$f":"'Application Form'!D28","v":0},{"$f":"'Application Form'!D31","v":0},{"$f":"'Application Form'!F31","v":0},{"$f":"TEXT('Application Form'!F34,\"HH:MM\") & \" to \" & TEXT('Application Form'!H34,\"HH:MM\")","v":"00:00 to 00:00"},{"$f":"INT(TEXT('Application Form'!J34,\"HH\"))","v":0},{"$f":"'Application Form'!F38","v":0},{"$f":"'Application Form'!F40","v":0},{"$f":"'Application Form'!C44","v":0},{"$f":"'Application Form'!G48","v":0},{"$f":"'Application Form'!F50","v":43831},{"$f":"'Application Form'!C55","v":"Not Included"},{"$f":"'Application Form'!C54","v":"Not Included"},{"$f":"'Application Form'!H35","v":"Attach File"},{"$f":"'Application Form'!H38","v":"Not Included"},null,0,"Not Included"]
[{"$f":"IF(A2=0,\"\",A2)","v":""},{"$f":"IF(B2=0,\"\",B2)","v":""},{"$f":"IF(C2=0,\"\",C2)","v":"HRI"},"","","","",{"$f":"IF(H2=0,\"\",ROUND(H2,5))","v":""},{"$f":"IF(I2=0,\"\",ROUND(I2,5))","v":""},"00:00 to 00:00",{"$f":"IF(K2=0,24,K2)","v":24},"","","","",43831,"Not Included","Not Included","Attach File","Not Included","","","Not Included",""]

{"sheet":"Applicant","index":6,"n_rows":3,"n_cols":5,"rows_kept":3,"cut":false,"hidden":true,"merged":[]}
["Name","Position","Phone","Mobile","Email"]
[{"$f":"'Application Form'!D19","v":0},{"$f":"'Application Form'!M19","v":0},{"$f":"'Application Form'!D20","v":0},{"$f":"'Application Form'!M20","v":0},{"$f":"'Application Form'!D21","v":0}]
[{"$f":"IF(A2=0,\"\",A2)","v":""},{"$f":"IF(B2=0,\"\",B2)","v":""},{"$f":"IF(C2=0,\"\",C2)","v":""},{"$f":"IF(D2=0,\"\",D2)","v":""},{"$f":"IF(E2=0,\"\",E2)","v":""}]